[Event "Slovakia Open Piestany-A 2022"]
[Site "Piestany"]
[Date "2022.07.12"]
[Round "2.29"]
[White "Holly, Andrej"]
[Black "Sosovickova, Jana"]
[Result "1-0"]
[ECO "A20"]
[WhiteElo "2213"]
[BlackElo "1958"]
[Annotator "ChessBase"]
[PlyCount "76"]
[EventDate "2022.07.12"]
[EventType "swiss"]
[EventCountry "SVK"]
[SourceTitle "playchess.com"]
[Source "ChessBase"]
[SourceQuality "1"]
[TimeControl "40/5400+30:1800+30"]

1. c4 {[%emt 0:00:04]} e5 {[%emt 0:00:05]} 2. g3 {[%emt 0:00:03]} c6 {[%emt 0:00:03]} 3. Bg2 {[%emt 0:01:21]} Nf6 {[%emt 0:03:54]} 4. d3 {[%emt 0:01:13]} d5 {[%emt 0:03:04]} 5. Nf3 {[%emt 0:00:05]} Bb4+ {[%emt 0:02:00]} 6. Bd2 {[%emt 0:01:22]} Qe7 {[%emt 0:02:05]} 7. O-O {[%emt 0:04:07]} Bxd2 {[%emt 0:02:09]} 8. Qxd2 {[%emt 0:02:45]} O-O {[%emt 0:00:26]} 9. Nc3 {[%emt 0:10:56]} d4 {[%emt 0:04:27]} 10. Nb1 {[%emt 0:00:16]} c5 {[%emt 0:03:00]} 11. e4 {[%emt 0:05:26]} Nc6 {[%emt 0:01:53]} 12. h3 {[%emt 0:01:58]} Ne8 {[%emt 0:07:48]} 13. Nh4 {[%emt 0:02:43]} Nd6 {[%emt 0:02:58]} 14. a3 {[%emt 0:07:06]} a5 {[%emt 0:02:45]} 15. Qe1 {[%emt 0:00:24]} g5 {[%emt 0:03:13]} 16. Nf3 {[%emt 0:00:28]} h6 {[%emt 0:05:50]} 17. Nh2 {[%emt 0:05:34]} f5 {[%emt 0:12:16]} 18. exf5 {[%emt 0:00:27]} Bxf5 {[%emt 0:00:06]} 19. Qe2 {[%emt 0:00:21]} e4 {[%emt 0:02:33]} 20. Re1 {[%emt 0:05:36]} Rae8 {[%emt 0:07:12]} 21. dxe4 {[%emt 0:00:17]} Nxe4 {[%emt 0:03:45]} 22. Nd2 {[%emt 0:00:41]} Nxd2 {[%emt 0:03:11]} 23. Qxd2 {[%emt 0:00:01]} Qc7 {[%emt 0:00:06]} 24. h4 {[%emt 0:04:19]} Qd8 {[%emt 0:03:40]} 25. Bd5+ {[%emt 0:02:27]} Kg7 {[%emt 0:00:43]} 26. g4 {[%emt 0:05:05]} Bc8 {[%emt 0:03:08]} 27. Rxe8 {[%emt 0:06:20]} Rxe8 {[%emt 0:00:20]} 28. hxg5 {[%emt 0:00:11]} Qxg5 {[%emt 0:04:25]} 29. f4 {[%emt 0:01:50]} Qh4 {[%emt 0:00:21]} 30. f5 {[%emt 0:04:10]} Re3 {[%emt 0:03:06]} 31. Rf1 {[%emt 0:02:35]} Kf6 {[%emt 0:03:18]} 32. Kh1 {[%emt 0:05:10]} Ne5 {[%emt 0:02:04]} 33. Qxa5 {[%emt 0:04:15]} Nxg4 {[%emt 0:03:13]} 34. Qd8+ {[%emt 0:00:06]} Re7 {[%emt 0:00:14]} 35. Qd6+ {[%emt 0:03:15]} Be6 {[%emt 0:02:29]} 36. fxe6+ {[%emt 0:00:21]} Kg6 {[%emt 0:01:31]} 37. Qf4 {[%emt 0:01:40]} h5 {[%emt 0:02:07]} 38. Be4+ {[%emt 0:00:12]} Kg7 {[%emt 0:00:13]} 1-0

[Event "Slovakia Open Piestany-A 2022"]
[Site "Piestany"]
[Date "2022.07.12"]
[Round "2.30"]
[White "Paluska, Karol"]
[Black "Delgerdalai, Bayarjavkhlan"]
[Result "0-1"]
[ECO "D00"]
[WhiteElo "1957"]
[BlackElo "2209"]
[Annotator "ChessBase"]
[PlyCount "78"]
[EventDate "2022.07.12"]
[EventType "swiss"]
[EventCountry "SVK"]
[SourceTitle "playchess.com"]
[Source "ChessBase"]
[SourceQuality "1"]
[TimeControl "40/5400+30:1800+30"]

1. d4 {[%emt 0:00:05]} d5 {[%emt 0:00:09]} 2. Nc3 {[%emt 0:00:56]} Nf6 {[%emt 0:01:14]} 3. Bf4 {[%emt 0:00:18]} Bf5 {[%emt 0:01:09]} 4. f3 {[%emt 0:04:15]} e6 {[%emt 0:00:19]} 5. g4 {[%emt 0:04:16]} Bg6 {[%emt 0:00:06]} 6. h4 {[%emt 0:02:58]} h5 {[%emt 0:00:06]} 7. g5 {[%emt 0:00:21]} Nfd7 {[%emt 0:00:05]} 8. e3 {[%emt 0:02:13]} Bb4 {[%emt 0:04:40]} 9. Bd3 {[%emt 0:09:16]} Nc6 {[%emt 0:17:02]} 10. Bxg6 {[%emt 0:04:50]} fxg6 {[%emt 0:00:08]} 11. Qd3 {[%emt 0:00:08]} O-O {[%emt 0:13:06]} 12. O-O-O {[%emt 0:16:52]} Ne7 {[%emt 0:03:37]} 13. Nge2 {[%emt 0:04:11]} c6 {[%emt 0:14:48]} 14. Nb1 {[%emt 0:03:02]} Nb6 {[%emt 0:03:16]} 15. c3 {[%emt 0:03:28]} Bd6 {[%emt 0:00:21]} 16. Nd2 {[%emt 0:00:52]} a5 {[%emt 0:02:44]} 17. Rdf1 {[%emt 0:09:25]} Qc7 {[%emt 0:06:47]} 18. Bxd6 {[%emt 0:01:48]} Qxd6 {[%emt 0:02:34]} 19. e4 {[%emt 0:00:54]} Nd7 {[%emt 0:01:01]} 20. Kb1 {[%emt 0:05:14]} b5 {[%emt 0:01:44]} 21. Nb3 {[%emt 0:04:53]} a4 {[%emt 0:05:04]} 22. Nbc1 {[%emt 0:00:32]} a3 {[%emt 0:02:59]} 23. b4 {[%emt 0:02:24]} e5 {[%emt 0:01:23]} 24. Nb3 {[%emt 0:03:40]} Rf7 {[%emt 0:02:21]} 25. Nec1 {[%emt 0:10:00]} Raf8 {[%emt 0:02:20]} 26. Qe2 {[%emt 0:01:12]} exd4 {[%emt 0:02:05]} 27. Nxd4 {[%emt 0:00:22]} Ne5 {[%emt 0:01:44]} 28. Nd3 {[%emt 0:01:05]} dxe4 {[%emt 0:05:04]} 29. fxe4 {[%emt 0:01:57]} Nxd3 {[%emt 0:01:28]} 30. Qxd3 {[%emt 0:00:39]} Qe5 {[%emt 0:02:23]} 31. Nf3 {[%emt 0:01:34]} Qg3 {[%emt 0:02:23]} 32. Rhg1 {[%emt 0:00:55]} Qh3 {[%emt 0:00:10]} 33. Rh1 {[%emt 0:00:22]} Qg2 {[%emt 0:00:40]} 34. Nd2 {[%emt 0:00:41]} Rxf1+ {[%emt 0:00:16]} 35. Rxf1 {[%emt 0:00:03]} Rxf1+ {[%emt 0:00:07]} 36. Qxf1 {[%emt 0:00:03]} Qxd2 {[%emt 0:00:06]} 37. Qc1 {[%emt 0:00:06]} Qe2 {[%emt 0:01:26]} 38. Qxa3 {[%emt 0:00:35]} Qxe4+ {[%emt 0:00:09]} 39. Kb2 {[%emt 0:00:04]} Qxh4 {[%emt 0:00:56]} 0-1

[Event "Slovakia Open Piestany-A 2022"]
[Site "Piestany"]
[Date "2022.07.12"]
[Round "2.31"]
[White "Banas, Jan"]
[Black "Mizicka, Matus"]
[Result "1-0"]
[ECO "A27"]
[WhiteElo "2206"]
[BlackElo "1915"]
[Annotator "ChessBase"]
[PlyCount "89"]
[EventDate "2022.07.12"]
[EventType "swiss"]
[EventCountry "SVK"]
[SourceTitle "playchess.com"]
[Source "ChessBase"]
[SourceQuality "1"]
[TimeControl "40/5400+30:1800+30"]

1. c4 {[%emt 0:07:14]} e5 {[%emt 0:00:19]} 2. Nc3 {[%emt 0:00:13]} Nc6 {[%emt 0:00:16]} 3. Nf3 {[%emt 0:00:18]} g6 {[%emt 0:01:46]} 4. e3 {[%emt 0:00:26]} Bg7 {[%emt 0:00:35]} 5. d4 {[%emt 0:00:06]} exd4 {[%emt 0:01:25]} 6. exd4 {[%emt 0:00:03]} Nge7 {[%emt 0:01:58]} 7. d5 {[%emt 0:01:06]} Ne5 {[%emt 0:00:57]} 8. Be2 {[%emt 0:04:47]} O-O {[%emt 0:02:00]} 9. O-O {[%emt 0:00:56]} d6 {[%emt 0:00:57]} 10. Nd4 {[%emt 0:03:33]} Nf5 {[%emt 0:02:33]} 11. Nc2 {[%emt 0:02:39]} h5 {[%emt 0:05:38]} 12. Bf4 {[%emt 0:02:51]} Qh4 {[%emt 0:04:21]} 13. Qd2 {[%emt 0:02:10]} Kh7 {[%emt 0:12:27]} 14. Ne4 {[%emt 0:06:10]} Bh6 {[%emt 0:09:34]} 15. Bxh6 {[%emt 0:07:47]} Qxe4 {[%emt 0:08:28]} 16. Bxf8 {[%emt 0:01:26]} Bd7 {[%emt 0:02:05]} 17. b3 {[%emt 0:06:28]} Rxf8 {[%emt 0:00:35]} 18. f3 {[%emt 0:00:47]} Qh4 {[%emt 0:00:37]} 19. Rae1 {[%emt 0:00:48]} Qf6 {[%emt 0:02:50]} 20. f4 {[%emt 0:05:28]} Ng4 {[%emt 0:01:30]} 21. h3 {[%emt 0:01:55]} Qh4 {[%emt 0:03:25]} 22. Bd3 {[%emt 0:06:09]} Ng3 {[%emt 0:08:54]} 23. Rf3 {[%emt 0:01:00]} Nf5 {[%emt 0:15:38]} 24. Bxf5 {[%emt 0:03:41]} Bxf5 {[%emt 0:00:05]} 25. Nd4 {[%emt 0:02:48]} Nf6 {[%emt 0:02:56]} 26. Rfe3 {[%emt 0:05:33]} Qxf4 {[%emt 0:01:42]} 27. Nxf5 {[%emt 0:01:01]} gxf5 {[%emt 0:01:08]} 28. Rf1 {[%emt 0:01:23]} Qg5 {[%emt 0:01:14]} 29. Qf2 {[%emt 0:00:30]} Kh6 {[%emt 0:07:46]} 30. Rg3 {[%emt 0:01:40]} Ne4 {[%emt 0:00:38]} 31. Rxg5 {[%emt 0:00:36]} Nxf2 {[%emt 0:00:04]} 32. Rxf5 {[%emt 0:01:00]} Nd3 {[%emt 0:01:12]} 33. Rxf7 {[%emt 0:00:31]} Rg8 {[%emt 0:00:46]} 34. Rxc7 {[%emt 0:01:12]} b6 {[%emt 0:00:38]} 35. Rxa7 {[%emt 0:00:44]} Re8 {[%emt 0:00:28]} 36. Rd7 {[%emt 0:00:37]} Kg5 {[%emt 0:00:26]} 37. Rxd6 {[%emt 0:00:32]} Re2 {[%emt 0:00:23]} 38. Re6 {[%emt 0:01:59]} Rd2 {[%emt 0:00:43]} 39. Re4 {[%emt 0:04:45]} Rxa2 {[%emt 0:00:19]} 40. h4+ {[%emt 0:00:34]} Kg6 {[%emt 0:00:20]} 41. Re6+ {[%emt 0:30:54]} Kg7 {[%emt 0:30:09]} 42. Rxb6 {[%emt 0:00:27]} Ne5 {[%emt 0:00:00]} 43. Re6 {[%emt 0:00:00]} Ng4 {[%emt 0:00:00]} 44. d6 {[%emt 0:00:00]} Rd2 {[%emt 0:00:00]} 45. c5 {[%emt 0:00:00]} 1-0

[Event "Slovakia Open Piestany-A 2022"]
[Site "Piestany"]
[Date "2022.07.12"]
[Round "2.32"]
[White "Saravanan Durga"]
[Black "Gyerpal, Adrian"]
[Result "1/2-1/2"]
[ECO "D10"]
[WhiteElo "1908"]
[BlackElo "2193"]
[Annotator "ChessBase"]
[PlyCount "98"]
[EventDate "2022.07.12"]
[EventType "swiss"]
[EventCountry "SVK"]
[SourceTitle "playchess.com"]
[Source "ChessBase"]
[SourceQuality "1"]
[TimeControl "40/5400+30:1800+30"]

1. d4 {[%emt 0:00:03]} d5 {[%emt 0:01:29]} 2. c4 {[%emt 0:00:11]} c6 {[%emt 0:00:06]} 3. Nc3 {[%emt 0:00:05]} dxc4 {[%emt 0:00:31]} 4. a4 {[%emt 0:00:47]} e5 {[%emt 0:01:29]} 5. dxe5 {[%emt 0:01:32]} Qxd1+ {[%emt 0:00:32]} 6. Nxd1 {[%emt 0:00:04]} Na6 {[%emt 0:01:02]} 7. e4 {[%emt 0:40:05]} Be6 {[%emt 0:04:20]} 8. Nf3 {[%emt 0:07:01]} O-O-O {[%emt 0:04:25]} 9. Ne3 {[%emt 0:00:59]} Nb4 {[%emt 0:04:49]} 10. Bd2 {[%emt 0:11:02]} h6 {[%emt 0:08:38]} 11. Rc1 {[%emt 0:06:25]} Nd3+ {[%emt 0:04:06]} 12. Bxd3 {[%emt 0:00:05]} cxd3 {[%emt 0:00:20]} 13. a5 {[%emt 0:01:18]} a6 {[%emt 0:03:34]} 14. b4 {[%emt 0:11:07]} Kb8 {[%emt 0:04:30]} 15. h3 {[%emt 0:03:35]} Ne7 {[%emt 0:03:48]} 16. Bc3 {[%emt 0:07:00]} g5 {[%emt 0:09:51]} 17. Nd4 {[%emt 0:01:35]} d2+ {[%emt 0:07:23]} 18. Kxd2 {[%emt 0:00:41]} c5 {[%emt 0:00:22]} 19. bxc5 {[%emt 0:00:13]} Nc6 {[%emt 0:00:22]} 20. Nec2 {[%emt 0:00:50]} Bxc5 {[%emt 0:01:12]} 21. Ke3 {[%emt 0:00:37]} Bb3 {[%emt 0:07:50]} 22. Rhd1 {[%emt 0:01:09]} Rd7 {[%emt 0:02:24]} 23. Ke2 {[%emt 0:02:23]} Nxd4+ {[%emt 0:03:36]} 24. Rxd4 {[%emt 0:00:29]} Bxd4 {[%emt 0:01:33]} 25. Nxd4 {[%emt 0:00:03]} Bc4+ {[%emt 0:07:34]} 26. Ke3 {[%emt 0:00:02]} Rhd8 {[%emt 0:01:38]} 27. Rb1 {[%emt 0:02:32]} Ka8 {[%emt 0:02:23]} 28. Rb6 {[%emt 0:00:13]} Be6 {[%emt 0:00:56]} 29. Bb2 {[%emt 0:02:04]} h5 {[%emt 0:04:56]} 30. Rb4 {[%emt 0:00:37]} Rc8 {[%emt 0:02:18]} 31. Rb6 {[%emt 0:00:28]} Rc5 {[%emt 0:03:19]} 32. Nxe6 {[%emt 0:00:14]} fxe6 {[%emt 0:00:02]} 33. Rxe6 {[%emt 0:00:20]} Rxa5 {[%emt 0:03:47]} 34. Re8+ {[%emt 0:00:16]} Ka7 {[%emt 0:00:30]} 35. e6 {[%emt 0:00:18]} Rd6 {[%emt 0:01:09]} 36. e7 {[%emt 0:01:31]} Re6 {[%emt 0:00:04]} 37. Bf6 {[%emt 0:00:26]} Ra3+ {[%emt 0:01:28]} 38. Kd2 {[%emt 0:00:32]} Ra2+ {[%emt 0:00:36]} 39. Kc3 {[%emt 0:00:33]} Rxf6 {[%emt 0:00:31]} 40. Ra8+ {[%emt 0:00:17]} Kxa8 {[%emt 0:00:13]} 41. e8=Q+ {[%emt 0:30:01]} Ka7 {[%emt 0:30:15]} 42. Qxh5 {[%emt 0:00:00]} Rfxf2 {[%emt 0:00:00]} 43. Qxg5 {[%emt 0:00:00]} Rxg2 {[%emt 0:00:00]} 44. Qc5+ {[%emt 0:00:00]} Kb8 {[%emt 0:00:00]} 45. Qf8+ {[%emt 0:00:00]} Kc7 {[%emt 0:00:00]} 46. Qe7+ {[%emt 0:00:00]} Kc6 {[%emt 0:00:00]} 47. Qe6+ {[%emt 0:00:00]} Kc5 {[%emt 0:00:00]} 48. Qd5+ {[%emt 0:00:00]} Kb6 {[%emt 0:00:00]} 49. Qd6+ {[%emt 0:00:00]} Ka7 {[%emt 0:00:00]} 1/2-1/2

[Event "Slovakia Open Piestany-A 2022"]
[Site "Piestany"]
[Date "2022.07.13"]
[Round "3"]
[White "Roshka, Yevgeniy"]
[Black "Vrchotka, Josef"]
[Result "1-0"]
[ECO "E60"]
[WhiteElo "2497"]
[BlackElo "1959"]
[Annotator "ChessBase"]
[PlyCount "125"]
[EventDate "2022.07.12"]
[EventType "swiss"]
[EventCountry "SVK"]
[SourceTitle "playchess.com"]
[Source "ChessBase"]
[SourceQuality "1"]
[TimeControl "40/5400+30:1800+30"]

1. d4 {[%emt 0:00:04]} Nf6 {[%emt 0:00:11]} 2. c4 {[%emt 0:00:06]} g6 {[%emt 0:00:13]} 3. h4 {[%emt 0:00:04]} c5 {[%emt 0:01:21]} 4. d5 {[%emt 0:00:02]} e6 {[%emt 0:00:41]} 5. Nc3 {[%emt 0:00:22]} exd5 {[%emt 0:00:17]} 6. Nxd5 {[%emt 0:00:44]} Nxd5 {[%emt 0:01:12]} 7. Qxd5 {[%emt 0:00:07]} Nc6 {[%emt 0:10:35]} 8. Nf3 {[%emt 0:15:32]} d6 {[%emt 0:04:40]} 9. Ng5 {[%emt 0:03:13]} Qe7 {[%emt 0:03:10]} 10. Bd2 {[%emt 0:09:36]} Bg7 {[%emt 0:01:26]} 11. h5 {[%emt 0:04:56]} Bf5 {[%emt 0:11:46]} 12. g4 {[%emt 0:07:49]} Bxb2 {[%emt 0:03:37]} 13. gxf5 {[%emt 0:00:14]} Bxa1 {[%emt 0:00:27]} 14. hxg6 {[%emt 0:00:12]} fxg6 {[%emt 0:11:12]} 15. Rxh7 {[%emt 0:07:02]} Rxh7 {[%emt 0:14:49]} 16. Qg8+ {[%emt 0:00:43]} Kd7 {[%emt 0:06:50]} 17. Qxa8 {[%emt 0:00:05]} Kc7 {[%emt 0:00:19]} 18. Nxh7 {[%emt 0:05:43]} Qxh7 {[%emt 0:00:02]} 19. Bg2 {[%emt 0:01:31]} gxf5 {[%emt 0:02:16]} 20. Qe8 {[%emt 0:07:38]} Qd7 {[%emt 0:01:26]} 21. Qh5 {[%emt 0:01:10]} Qg7 {[%emt 0:03:50]} 22. Qf3 {[%emt 0:00:03]} Qb2 {[%emt 0:01:19]} 23. Qxf5 {[%emt 0:00:38]} Qxa2 {[%emt 0:00:50]} 24. Bd5 {[%emt 0:02:39]} Be5 {[%emt 0:02:35]} 25. f4 {[%emt 0:01:30]} Qa1+ {[%emt 0:02:14]} 26. Kf2 {[%emt 0:00:01]} Bd4+ {[%emt 0:01:11]} 27. e3 {[%emt 0:00:29]} Qb2 {[%emt 0:00:21]} 28. Qd3 {[%emt 0:00:11]} Bf6 {[%emt 0:00:26]} 29. Kf3 {[%emt 0:00:17]} Qa1 {[%emt 0:01:37]} 30. Ke2 {[%emt 0:04:02]} Qb2 {[%emt 0:00:08]} 31. Kf3 {[%emt 0:02:11]} Qa1 {[%emt 0:00:19]} 32. Kg2 {[%emt 0:00:01]} Qb2 {[%emt 0:00:31]} 33. Kh3 {[%emt 0:00:01]} Bg7 {[%emt 0:01:33]} 34. Bf3 {[%emt 0:01:41]} Qf6 {[%emt 0:00:49]} 35. Kg3 {[%emt 0:01:02]} Ne7 {[%emt 0:00:29]} 36. Be4 {[%emt 0:01:01]} Qb2 {[%emt 0:00:39]} 37. Kh3 {[%emt 0:02:51]} Qa1 {[%emt 0:00:28]} 38. Bf3 {[%emt 0:01:29]} Qf6 {[%emt 0:00:37]} 39. Qe4 {[%emt 0:00:42]} Nc6 {[%emt 0:00:27]} 40. Be1 {[%emt 0:00:37]} Kd7 {[%emt 0:00:50]} 41. Bh4 {[%emt 0:30:13]} Qf8 {[%emt 0:31:57]} 42. Qh7 {[%emt 0:03:30]} Qh8 {[%emt 0:00:58]} 43. Qf5+ {[%emt 0:01:27]} Kc7 {[%emt 0:00:20]} 44. Qf7+ {[%emt 0:02:32]} Kb6 {[%emt 0:00:14]} 45. Qe6 {[%emt 0:01:54]} Bf8 {[%emt 0:02:36]} 46. Qe8 {[%emt 0:06:30]} Bg7 {[%emt 0:03:34]} 47. Qg6 {[%emt 0:02:54]} Bf8 {[%emt 0:01:58]} 48. Kg4 {[%emt 0:01:30]} a5 {[%emt 0:01:39]} 49. Bxc6 {[%emt 0:01:46]} bxc6 {[%emt 0:00:00]} 50. Bd8+ {[%emt 0:00:00]} Ka6 {[%emt 0:00:00]} 51. Qe8 {[%emt 0:00:00]} Qg7+ {[%emt 0:00:00]} 52. Kf3 {[%emt 0:00:00]} Kb7 {[%emt 0:00:00]} 53. Bxa5 {[%emt 0:00:00]} Qe7 {[%emt 0:00:00]} 54. Qxe7+ {[%emt 0:00:00]} Bxe7 {[%emt 0:00:00]} 55. Ke4 {[%emt 0:00:00]} Kc8 {[%emt 0:00:00]} 56. Kf5 {[%emt 0:00:00]} Kd7 {[%emt 0:00:00]} 57. Kg6 {[%emt 0:00:00]} d5 {[%emt 0:00:00]} 58. f5 {[%emt 0:00:00]} Kd6 {[%emt 0:00:00]} 59. Bc3 {[%emt 0:00:00]} Bf8 {[%emt 0:00:00]} 60. Kf7 {[%emt 0:00:00]} Bh6 {[%emt 0:00:00]} 61. f6 {[%emt 0:00:00]} Bxe3 {[%emt 0:00:00]} 62. Kg8 {[%emt 0:00:00]} Ke6 {[%emt 0:00:00]} 63. f7 {[%emt 0:00:00]} 1-0

[Event "Slovakia Open Piestany-A 2022"]
[Site "Piestany"]
[Date "2022.07.13"]
[Round "3"]
[White "Velicka, Petr"]
[Black "Nejdl, Eduard"]
[Result "1-0"]
[ECO "B04"]
[WhiteElo "2384"]
[BlackElo "1951"]
[Annotator "ChessBase"]
[PlyCount "50"]
[EventDate "2022.07.12"]
[EventType "swiss"]
[EventCountry "SVK"]
[SourceTitle "playchess.com"]
[Source "ChessBase"]
[SourceQuality "1"]
[TimeControl "40/5400+30:1800+30"]

1. e4 {[%emt 0:00:22]} Nf6 {[%emt 0:24:06]} 2. e5 {[%emt 0:00:10]} Nd5 {[%emt 0:00:03]} 3. d4 {[%emt 0:00:08]} d6 {[%emt 0:00:05]} 4. Nf3 {[%emt 0:00:07]} dxe5 {[%emt 0:00:19]} 5. Nxe5 {[%emt 0:00:07]} c6 {[%emt 0:00:06]} 6. Bc4 {[%emt 0:05:17]} g6 {[%emt 0:01:53]} 7. O-O {[%emt 0:08:33]} Bg7 {[%emt 0:01:38]} 8. Re1 {[%emt 0:07:37]} Nd7 {[%emt 0:04:17]} 9. Nf3 {[%emt 0:01:44]} N7f6 {[%emt 0:13:26]} 10. Bb3 {[%emt 0:02:02]} O-O {[%emt 0:02:58]} 11. Nbd2 {[%emt 0:02:34]} a5 {[%emt 0:02:38]} 12. a4 {[%emt 0:00:20]} Bf5 {[%emt 0:07:33]} 13. Nc4 {[%emt 0:04:23]} Qc7 {[%emt 0:08:03]} 14. Nce5 {[%emt 0:04:56]} Rad8 {[%emt 0:01:45]} 15. Nd3 {[%emt 0:03:18]} Bxd3 {[%emt 0:01:21]} 16. Qxd3 {[%emt 0:00:29]} Rfe8 {[%emt 0:04:10]} 17. c3 {[%emt 0:05:21]} Nd7 {[%emt 0:04:44]} 18. Bg5 {[%emt 0:01:50]} Nf8 {[%emt 0:03:13]} 19. Bh4 {[%emt 0:05:39]} Ne6 {[%emt 0:02:29]} 20. Rad1 {[%emt 0:02:54]} Qc8 {[%emt 0:01:58]} 21. Bg3 {[%emt 0:01:38]} Nef4 {[%emt 0:01:59]} 22. Qe4 {[%emt 0:01:16]} Qf5 {[%emt 0:00:48]} 23. c4 {[%emt 0:02:37]} Qxe4 {[%emt 0:03:14]} 24. Rxe4 {[%emt 0:00:12]} Nf6 {[%emt 0:02:54]} 25. Rxf4 {[%emt 0:00:29]} e5 {[%emt 0:01:04]} 1-0

[Event "Slovakia Open Piestany-A 2022"]
[Site "Piestany"]
[Date "2022.07.13"]
[Round "3"]
[White "Simek, Petr"]
[Black "Tsifanskaya, Ludmila A"]
[Result "1-0"]
[ECO "D77"]
[WhiteElo "2348"]
[BlackElo "1941"]
[Annotator "ChessBase"]
[PlyCount "118"]
[EventDate "2022.07.12"]
[EventType "swiss"]
[EventCountry "SVK"]
[SourceTitle "playchess.com"]
[Source "ChessBase"]
[SourceQuality "1"]
[TimeControl "40/5400+30:1800+30"]

1. d4 {[%emt 0:00:09]} Nf6 {[%emt 0:00:29]} 2. c4 {[%emt 0:00:05]} e6 {[%emt 0:00:13]} 3. Nf3 {[%emt 0:00:06]} d5 {[%emt 0:00:32]} 4. g3 {[%emt 0:00:08]} g6 {[%emt 0:02:20]} 5. Bg2 {[%emt 0:00:47]} Bg7 {[%emt 0:00:09]} 6. O-O {[%emt 0:09:39]} O-O {[%emt 0:03:14]} 7. Qc2 {[%emt 0:02:42]} Na6 {[%emt 0:12:04]} 8. a3 {[%emt 0:13:18]} c5 {[%emt 0:10:52]} 9. dxc5 {[%emt 0:01:35]} dxc4 {[%emt 0:00:21]} 10. Qxc4 {[%emt 0:42:50]} Qd5 {[%emt 0:08:03]} 11. Qh4 {[%emt 0:00:31]} Qxc5 {[%emt 0:05:17]} 12. Nc3 {[%emt 0:05:07]} Qh5 {[%emt 0:01:17]} 13. Qxh5 {[%emt 0:03:17]} Nxh5 {[%emt 0:00:12]} 14. Be3 {[%emt 0:00:17]} Nf6 {[%emt 0:06:51]} 15. Bd4 {[%emt 0:07:09]} Nc7 {[%emt 0:02:26]} 16. Rac1 {[%emt 0:01:04]} Ncd5 {[%emt 0:01:53]} 17. Rfd1 {[%emt 0:05:45]} b6 {[%emt 0:01:45]} 18. Nxd5 {[%emt 0:04:03]} exd5 {[%emt 0:01:20]} 19. e3 {[%emt 0:00:44]} Bf5 {[%emt 0:01:08]} 20. Nh4 {[%emt 0:00:41]} Be6 {[%emt 0:00:23]} 21. Rc2 {[%emt 0:00:31]} Rac8 {[%emt 0:01:46]} 22. Re2 {[%emt 0:00:30]} Ne4 {[%emt 0:04:24]} 23. Nf3 {[%emt 0:00:08]} f6 {[%emt 0:02:28]} 24. h3 {[%emt 0:00:17]} Rc7 {[%emt 0:01:04]} 25. Ne1 {[%emt 0:00:34]} Rfc8 {[%emt 0:00:19]} 26. Nd3 {[%emt 0:00:35]} Rc2 {[%emt 0:01:09]} 27. Rxc2 {[%emt 0:00:06]} Rxc2 {[%emt 0:00:01]} 28. Nb4 {[%emt 0:00:44]} Rc8 {[%emt 0:01:52]} 29. Bf1 {[%emt 0:00:26]} Ng5 {[%emt 0:04:48]} 30. h4 {[%emt 0:01:04]} Nf3+ {[%emt 0:00:19]} 31. Kg2 {[%emt 0:00:01]} Nxd4 {[%emt 0:08:21]} 32. Rxd4 {[%emt 0:00:07]} f5 {[%emt 0:00:52]} 33. Rd2 {[%emt 0:00:10]} a5 {[%emt 0:00:17]} 34. Nxd5 {[%emt 0:00:59]} Bxd5+ {[%emt 0:00:25]} 35. Rxd5 {[%emt 0:00:04]} Bxb2 {[%emt 0:00:26]} 36. a4 {[%emt 0:00:09]} Ba3 {[%emt 0:00:37]} 37. Rd7 {[%emt 0:00:42]} h6 {[%emt 0:03:03]} 38. Rb7 {[%emt 0:00:27]} Bc5 {[%emt 0:00:34]} 39. Bc4+ {[%emt 0:00:28]} Kh8 {[%emt 0:00:17]} 40. Bf7 {[%emt 0:00:37]} Rc6 {[%emt 0:01:03]} 41. h5 {[%emt 0:02:45]} gxh5 {[%emt 0:01:19]} 42. Bxh5 {[%emt 0:00:16]} Bb4 {[%emt 0:02:22]} 43. Be8 {[%emt 0:10:29]} Rf6 {[%emt 0:03:25]} 44. Bb5 {[%emt 0:02:14]} Kg8 {[%emt 0:08:21]} 45. Bd3 {[%emt 0:00:38]} Kf8 {[%emt 0:02:23]} 46. Rd7 {[%emt 0:03:37]} Bd6 {[%emt 0:03:23]} 47. Kh3 {[%emt 0:04:55]} Bb4 {[%emt 0:00:53]} 48. Rd5 {[%emt 0:00:23]} Be1 {[%emt 0:00:54]} 49. Kg2 {[%emt 0:03:22]} Ke7 {[%emt 0:01:43]} 50. Bxf5 {[%emt 0:01:23]} Rd6 {[%emt 0:01:06]} 51. Rxd6 {[%emt 0:00:25]} Kxd6 {[%emt 0:00:01]} 52. Bd3 {[%emt 0:00:07]} Bd2 {[%emt 0:00:56]} 53. Kf3 {[%emt 0:00:18]} Be1 {[%emt 0:00:07]} 54. Ke2 {[%emt 0:00:58]} Bc3 {[%emt 0:00:30]} 55. f4 {[%emt 0:00:30]} Kd5 {[%emt 0:00:36]} 56. g4 {[%emt 0:00:11]} Bf6 {[%emt 0:01:07]} 57. Bh7 {[%emt 0:07:53]} Be7 {[%emt 0:25:00]} 58. Kd3 {[%emt 0:00:30]} Bd8 {[%emt 0:00:30]} 59. e4+ {[%emt 0:00:30]} Kc5 {[%emt 0:00:30]} 1-0

[Event "Slovakia Open Piestany-A 2022"]
[Site "Piestany"]
[Date "2022.07.13"]
[Round "3"]
[White "Heimisson, Hilmir Freyr"]
[Black "Milovs, Daniels"]
[Result "1-0"]
[ECO "E62"]
[WhiteElo "2281"]
[BlackElo "1926"]
[Annotator "ChessBase"]
[PlyCount "79"]
[EventDate "2022.07.12"]
[EventType "swiss"]
[EventCountry "SVK"]
[SourceTitle "playchess.com"]
[Source "ChessBase"]
[SourceQuality "1"]
[TimeControl "40/5400+30:1800+30"]

1. d4 {[%emt 0:00:01]} Nf6 {[%emt 0:00:06]} 2. c4 {[%emt 0:00:32]} g6 {[%emt 0:00:02]} 3. Nf3 {[%emt 0:00:21]} Bg7 {[%emt 0:00:10]} 4. g3 {[%emt 0:01:22]} O-O {[%emt 0:00:04]} 5. Bg2 {[%emt 0:00:14]} d6 {[%emt 0:00:02]} 6. Nc3 {[%emt 0:02:38]} Nc6 {[%emt 0:00:04]} 7. O-O {[%emt 0:01:07]} Bg4 {[%emt 0:00:07]} 8. d5 {[%emt 0:04:10]} Na5 {[%emt 0:00:45]} 9. Nd2 {[%emt 0:01:54]} c5 {[%emt 0:00:19]} 10. Rb1 {[%emt 0:10:49]} a6 {[%emt 0:04:38]} 11. a3 {[%emt 0:06:40]} Qc7 {[%emt 0:04:25]} 12. b3 {[%emt 0:02:41]} Rab8 {[%emt 0:02:17]} 13. Bb2 {[%emt 0:06:15]} b5 {[%emt 0:01:45]} 14. h3 {[%emt 0:01:59]} Bd7 {[%emt 0:01:18]} 15. Qc2 {[%emt 0:00:41]} Rb6 {[%emt 0:13:05]} 16. Na2 {[%emt 0:05:01]} bxc4 {[%emt 0:07:24]} 17. bxc4 {[%emt 0:00:25]} Rfb8 {[%emt 0:04:56]} 18. Bc3 {[%emt 0:17:20]} Rxb1 {[%emt 0:02:43]} 19. Rxb1 {[%emt 0:00:16]} Rxb1+ {[%emt 0:00:22]} 20. Qxb1 {[%emt 0:00:21]} h6 {[%emt 0:03:06]} 21. e4 {[%emt 0:03:56]} Nh5 {[%emt 0:07:35]} 22. Qb2 {[%emt 0:04:28]} Bxc3 {[%emt 0:10:20]} 23. Qxc3 {[%emt 0:00:20]} Qb6 {[%emt 0:02:47]} 24. Bf1 {[%emt 0:01:42]} Nb7 {[%emt 0:01:53]} 25. Kg2 {[%emt 0:01:28]} Qa5 {[%emt 0:06:10]} 26. Qb2 {[%emt 0:00:33]} Qc7 {[%emt 0:03:53]} 27. Nc1 {[%emt 0:01:12]} Na5 {[%emt 0:01:24]} 28. Nd3 {[%emt 0:02:49]} e5 {[%emt 0:01:50]} 29. Qc3 {[%emt 0:06:29]} f5 {[%emt 0:02:54]} 30. Be2 {[%emt 0:07:51]} Nf6 {[%emt 0:00:13]} 31. exf5 {[%emt 0:00:59]} Bxf5 {[%emt 0:01:35]} 32. f4 {[%emt 0:02:11]} Ne4 {[%emt 0:01:37]} 33. Nxe4 {[%emt 0:02:24]} Bxe4+ {[%emt 0:00:02]} 34. Bf3 {[%emt 0:03:24]} Bxd3 {[%emt 0:04:50]} 35. Qxd3 {[%emt 0:00:01]} Kg7 {[%emt 0:00:02]} 36. fxe5 {[%emt 0:01:47]} dxe5 {[%emt 0:02:44]} 37. d6 {[%emt 0:00:19]} Qd7 {[%emt 0:02:00]} 38. Qd5 {[%emt 0:01:17]} Nxc4 {[%emt 0:00:13]} 39. Qxc4 {[%emt 0:00:24]} Qxd6 {[%emt 0:00:30]} 40. Qd5 {[%emt 0:00:56]} 1-0